[Event "Live Chess"]
[Site "Chess.com"]
[Date "2024.06.01"]
[Round "-"]
[White "DavrosLight"]
[Black "NeilDruggan73"]
[Result "0-1"]
[WhiteElo "778"]
[BlackElo "1735"]
[TimeControl "300"]
[EndTime "9:38:03 PDT"]
[Termination "NeilDruggan73 won by checkmate"]

1. e4 {[%clk 0:04:56.1]} 1... d6 {[%clk 0:04:57.9]} 2. Nc3 {[%clk 0:04:50.2]}
2... Nf6 {[%clk 0:04:55.4]} 3. Nf3 {[%clk 0:04:48.2]} 3... g6 {[%clk 0:04:52.7]}
4. d4 {[%clk 0:04:43.2]} 4... Bg7 {[%clk 0:04:49]} 5. Bg5 {[%clk 0:04:40.8]}
5... Nc6 {[%clk 0:04:43.1]} 6. Qd2 {[%clk 0:04:37.2]} 6... h6 {[%clk 0:04:38.6]}
7. Bxf6 {[%clk 0:04:33.7]} 7... Bxf6 {[%clk 0:04:31.3]} 8. Bb5 {[%clk
0:04:24.6]} 8... a6 {[%clk 0:04:28.3]} 9. Bxc6+ {[%clk 0:04:23.6]} 9... bxc6
{[%clk 0:04:26.7]} 10. O-O-O {[%clk 0:04:19.2]} 10... Bg4 {[%clk 0:04:22]} 11.
Kb1 {[%clk 0:04:06.3]} 11... O-O {[%clk 0:04:11.3]} 12. h3 {[%clk 0:04:03.3]}
12... Bxf3 {[%clk 0:04:04.4]} 13. gxf3 {[%clk 0:04:01.5]} 13... Bg7 {[%clk
0:04:02.9]} 14. h4 {[%clk 0:03:58.7]} 14... Rb8 {[%clk 0:03:42]} 15. Ne2 {[%clk
0:03:41.5]} 15... Rb6 {[%clk 0:03:35.7]} 16. Nf4 {[%clk 0:03:36.2]} 16... Qb8
{[%clk 0:03:31.6]} 17. b3 {[%clk 0:03:34.2]} 17... a5 {[%clk 0:03:22.1]} 18.
Qxa5 {[%clk 0:03:26.6]} 18... Qb7 {[%clk 0:03:16.6]} 19. Qd2 {[%clk 0:03:14.6]}
19... Ra8 {[%clk 0:03:14.4]} 20. Rdg1 {[%clk 0:02:59]} 20... Qa6 {[%clk
0:03:12.5]} 21. a4 {[%clk 0:02:51.8]} 21... Qxa4 {[%clk 0:03:10.2]} 22. c4
{[%clk 0:02:37.6]} 22... Rxb3+ {[%clk 0:03:00.7]} 23. Kc1 {[%clk 0:02:31.6]}
23... Qa1+ {[%clk 0:02:40.1]} 24. Kc2 {[%clk 0:02:28.1]} 24... Rb2+ {[%clk
0:02:34.2]} 25. Kd3 {[%clk 0:02:21]} 25... Ra3+ {[%clk 0:02:20]} 26. Qc3 {[%clk
0:01:57.1]} 26... Rxc3+ {[%clk 0:02:14.5]} 27. Kxc3 {[%clk 0:01:55.7]} 27...
Qa3# {[%clk 0:02:13.5]} 0-1

[Event "Live Chess"]
[Site "Chess.com"]
[Date "2024.06.01"]
[Round "-"]
[White "Yegorych"]
[Black "StoreySniper"]
[Result "0-1"]
[WhiteElo "1505"]
[BlackElo "2536"]
[TimeControl "300"]
[EndTime "9:38:06 PDT"]
[Termination "StoreySniper won by checkmate"]

1. d4 {[%clk 0:04:50.7]} 1... g6 {[%clk 0:04:59.9]} 2. Nc3 {[%clk 0:04:49]} 2...
Bg7 {[%clk 0:04:59.5]} 3. e4 {[%clk 0:04:47.4]} 3... c5 {[%clk 0:04:59]} 4. d5
{[%clk 0:04:38.5]} 4... d6 {[%clk 0:04:57.5]} 5. Nf3 {[%clk 0:04:36.4]} 5... Bg4
{[%clk 0:04:55.1]} 6. Be2 {[%clk 0:04:34.8]} 6... Nd7 {[%clk 0:04:53.8]} 7. O-O
{[%clk 0:04:26.7]} 7... Bxc3 {[%clk 0:04:52.7]} 8. bxc3 {[%clk 0:04:24.7]} 8...
Ngf6 {[%clk 0:04:52.4]} 9. Ng5 {[%clk 0:04:12.5]} 9... Bxe2 {[%clk 0:04:49.7]}
10. Qxe2 {[%clk 0:04:12.4]} 10... h6 {[%clk 0:04:48.2]} 11. Nf3 {[%clk 0:04:10]}
11... Qa5 {[%clk 0:04:47.2]} 12. Bd2 {[%clk 0:04:06.1]} 12... Qa4 {[%clk
0:04:35.3]} 13. e5 {[%clk 0:03:54.9]} 13... dxe5 {[%clk 0:04:34.6]} 14. Nxe5
{[%clk 0:03:53.4]} 14... Qe4 {[%clk 0:04:34]} 15. Qxe4 {[%clk 0:03:48.6]} 15...
Nxe4 {[%clk 0:04:32.1]} 16. Bf4 {[%clk 0:03:44.3]} 16... Nxc3 {[%clk 0:04:29.4]}
17. Rfe1 {[%clk 0:03:36.5]} 17... Nxd5 {[%clk 0:04:25.1]} 18. Nxd7 {[%clk
0:03:23]} 18... Nxf4 {[%clk 0:04:22.8]} 19. Nxc5 {[%clk 0:03:19.6]} 19... b6
{[%clk 0:04:20.2]} 20. Ne4 {[%clk 0:03:11.6]} 20... Ne6 {[%clk 0:04:15.8]} 21.
Rad1 {[%clk 0:03:01.5]} 21... Rd8 {[%clk 0:04:14.2]} 22. Nc3 {[%clk 0:02:51.8]}
22... O-O {[%clk 0:03:56.3]} 23. Nd5 {[%clk 0:02:47.1]} 23... Rfe8 {[%clk
0:03:39.3]} 24. c4 {[%clk 0:02:44]} 24... Kf8 {[%clk 0:03:37.3]} 25. g3 {[%clk
0:02:41.3]} 25... Rc8 {[%clk 0:03:34.2]} 26. Ne3 {[%clk 0:02:36.2]} 26... Rc5
{[%clk 0:03:29.9]} 27. Rd7 {[%clk 0:02:33.2]} 27... Rc7 {[%clk 0:03:26.3]} 28.
Red1 {[%clk 0:02:28.9]} 28... Rec8 {[%clk 0:03:23.4]} 29. Kg2 {[%clk 0:02:23.1]}
29... Rxd7 {[%clk 0:03:19.7]} 30. Rxd7 {[%clk 0:02:22.6]} 30... Rc7 {[%clk
0:03:19.2]} 31. Rxc7 {[%clk 0:02:14.9]} 31... Nxc7 {[%clk 0:03:18]} 32. Kf3
{[%clk 0:02:13.4]} 32... e6 {[%clk 0:03:07.5]} 33. Ke4 {[%clk 0:02:09.1]} 33...
Ke7 {[%clk 0:03:04.9]} 34. f4 {[%clk 0:02:05.6]} 34... Kd6 {[%clk 0:03:02.5]}
35. Kd4 {[%clk 0:01:59]} 35... f5 {[%clk 0:02:58.8]} 36. g4 {[%clk 0:01:53.1]}
36... Na6 {[%clk 0:02:56.7]} 37. a3 {[%clk 0:01:49.7]} 37... Nb8 {[%clk
0:02:55.3]} 38. h3 {[%clk 0:01:46.8]} 38... Nc6+ {[%clk 0:02:54.5]} 39. Kc3
{[%clk 0:01:42.3]} 39... fxg4 {[%clk 0:02:44.2]} 40. hxg4 {[%clk 0:01:37.2]}
40... h5 {[%clk 0:02:40.7]} 41. gxh5 {[%clk 0:01:33.7]} 41... gxh5 {[%clk
0:02:39.6]} 42. f5 {[%clk 0:01:26.7]} 42... exf5 {[%clk 0:02:35.7]} 43. Nxf5+
{[%clk 0:01:24.6]} 43... Ke5 {[%clk 0:02:34.2]} 44. Nh4 {[%clk 0:01:13.8]} 44...
Kf4 {[%clk 0:02:31.3]} 45. Kd3 {[%clk 0:01:09]} 45... Ne5+ {[%clk 0:02:28.2]}
46. Kd4 {[%clk 0:01:07.5]} 46... Nf3+ {[%clk 0:02:27]} 47. Nxf3 {[%clk
0:01:00.6]} 47... Kxf3 {[%clk 0:02:26.9]} 48. c5 {[%clk 0:01:00]} 48... bxc5+
{[%clk 0:02:25.5]} 49. Kxc5 {[%clk 0:00:59.3]} 49... h4 {[%clk 0:02:25]} 50. Kb5
{[%clk 0:00:58.3]} 50... h3 {[%clk 0:02:24.7]} 51. Ka6 {[%clk 0:00:57.9]} 51...
h2 {[%clk 0:02:24.4]} 52. Kxa7 {[%clk 0:00:57.8]} 52... h1=Q {[%clk 0:02:24]}
53. a4 {[%clk 0:00:57]} 53... Ke4 {[%clk 0:02:23.3]} 54. a5 {[%clk 0:00:55.5]}
54... Kd5 {[%clk 0:02:22.9]} 55. a6 {[%clk 0:00:54.5]} 55... Kc6 {[%clk
0:02:21.3]} 56. Ka8 {[%clk 0:00:53.5]} 56... Kb6+ {[%clk 0:02:18.3]} 57. Kb8
{[%clk 0:00:46.5]} 57... Qh8# {[%clk 0:02:17.3]} 0-1

[Event "Live Chess"]
[Site "Chess.com"]
[Date "2024.06.01"]
[Round "-"]
[White "ProfPoisson"]
[Black "GwaryTek"]
[Result "0-1"]
[WhiteElo "1234"]
[BlackElo "1968"]
[TimeControl "300"]
[EndTime "9:38:07 PDT"]
[Termination "GwaryTek won by resignation"]

1. e4 {[%clk 0:04:44.6]} 1... Nf6 {[%clk 0:04:59.9]} 2. Nc3 {[%clk 0:04:40.9]}
2... d5 {[%clk 0:04:58.6]} 3. exd5 {[%clk 0:04:35.1]} 3... Nxd5 {[%clk
0:04:57.7]} 4. Nxd5 {[%clk 0:04:31.6]} 4... Qxd5 {[%clk 0:04:57.6]} 5. d4 {[%clk
0:04:28.1]} 5... Nc6 {[%clk 0:04:55.2]} 6. Nf3 {[%clk 0:04:26.5]} 6... Bg4
{[%clk 0:04:53.9]} 7. Be2 {[%clk 0:04:17.7]} 7... O-O-O {[%clk 0:04:51.4]} 8. c3
{[%clk 0:04:06.8]} 8... e5 {[%clk 0:04:50.2]} 9. O-O {[%clk 0:04:00.6]} 9... e4
{[%clk 0:04:23.8]} 10. c4 {[%clk 0:03:38]} 10... Qh5 {[%clk 0:04:04.3]} 11. d5
{[%clk 0:03:02]} 11... exf3 {[%clk 0:03:56.3]} 12. Bxf3 {[%clk 0:02:56.1]} 12...
Bxf3 {[%clk 0:03:48.7]} 13. Qxf3 {[%clk 0:02:51.6]} 13... Qxf3 {[%clk
0:03:46.5]} 14. gxf3 {[%clk 0:02:50.2]} 14... Ne5 {[%clk 0:03:44.5]} 15. f4
{[%clk 0:02:43.3]} 15... Nxc4 {[%clk 0:03:42]} 16. Re1 {[%clk 0:02:32.6]} 16...
Bb4 {[%clk 0:03:36.5]} 17. Re4 {[%clk 0:02:29.2]} 17... b5 {[%clk 0:03:24.6]}
18. b3 {[%clk 0:02:24.9]} 18... Bc3 {[%clk 0:03:22.4]} 19. Rb1 {[%clk
0:02:15.9]} 19... Nd6 {[%clk 0:03:15.9]} 20. Re7 {[%clk 0:02:12.3]} 20... Rhe8
{[%clk 0:03:10.1]} 21. Rxe8 {[%clk 0:02:05.8]} 21... Rxe8 {[%clk 0:03:10]} 22.
Ba3 {[%clk 0:02:02]} 22... b4 {[%clk 0:03:06.3]} 0-1

[Event "Live Chess"]
[Site "Chess.com"]
[Date "2024.06.01"]
[Round "-"]
[White "nitrofish07"]
[Black "Yarigo"]
[Result "1-0"]
[WhiteElo "2132"]
[BlackElo "2410"]
[TimeControl "300"]
[EndTime "9:38:25 PDT"]
[Termination "nitrofish07 won by resignation"]

1. e4 {[%clk 0:04:58.1]} 1... e5 {[%clk 0:04:57.4]} 2. Nf3 {[%clk 0:04:57.3]}
2... Nc6 {[%clk 0:04:56]} 3. Bb5 {[%clk 0:04:56.4]} 3... a6 {[%clk 0:04:54.7]}
4. Ba4 {[%clk 0:04:55.1]} 4... Nf6 {[%clk 0:04:52.1]} 5. O-O {[%clk 0:04:54]}
5... Nxe4 {[%clk 0:04:50.3]} 6. d4 {[%clk 0:04:48.3]} 6... b5 {[%clk 0:04:48.4]}
7. Bb3 {[%clk 0:04:46.8]} 7... d5 {[%clk 0:04:47.9]} 8. dxe5 {[%clk 0:04:43.7]}
8... Be6 {[%clk 0:04:46.2]} 9. c3 {[%clk 0:04:38.2]} 9... Be7 {[%clk 0:04:43.9]}
10. Nbd2 {[%clk 0:04:36]} 10... Nc5 {[%clk 0:04:42.3]} 11. Re1 {[%clk
0:04:31.5]} 11... d4 {[%clk 0:04:27.8]} 12. Bxe6 {[%clk 0:04:10.3]} 12... Nxe6
{[%clk 0:04:24.6]} 13. cxd4 {[%clk 0:04:06.4]} 13... Ncxd4 {[%clk 0:04:23]} 14.
Nxd4 {[%clk 0:04:04.3]} 14... Qxd4 {[%clk 0:04:20.5]} 15. Nf3 {[%clk 0:03:59.9]}
15... Qxd1 {[%clk 0:04:18.2]} 16. Rxd1 {[%clk 0:03:59.8]} 16... O-O {[%clk
0:03:55.8]} 17. Be3 {[%clk 0:03:38.6]} 17... Rfd8 {[%clk 0:03:49.4]} 18. b3
{[%clk 0:03:37.7]} 18... Kf8 {[%clk 0:03:43.7]} 19. Kf1 {[%clk 0:03:35.7]} 19...
Ke8 {[%clk 0:03:41.7]} 20. Ke2 {[%clk 0:03:31.1]} 20... Rxd1 {[%clk 0:03:38.1]}
21. Rxd1 {[%clk 0:03:29.2]} 21... c5 {[%clk 0:03:36]} 22. Rc1 {[%clk 0:03:17.9]}
22... Rd8 {[%clk 0:03:24.9]} 23. Ne1 {[%clk 0:03:16.1]} 23... g5 {[%clk
0:03:17.7]} 24. Nd3 {[%clk 0:03:09.4]} 24... Rd5 {[%clk 0:03:15.7]} 25. h3
{[%clk 0:03:03.7]} 25... h5 {[%clk 0:02:46.8]} 26. f3 {[%clk 0:03:02.8]} 26...
Kf8 {[%clk 0:02:39.8]} 27. g4 {[%clk 0:02:57.3]} 27... hxg4 {[%clk 0:02:28.9]}
28. hxg4 {[%clk 0:02:55.4]} 28... Kg7 {[%clk 0:02:28.2]} 29. a4 {[%clk
0:02:48.9]} 29... Kg6 {[%clk 0:02:25.1]} 30. axb5 {[%clk 0:02:42.3]} 30... axb5
{[%clk 0:02:23.8]} 31. Rc2 {[%clk 0:02:36]} 31... Kg7 {[%clk 0:02:16.3]} 32. Rc1
{[%clk 0:02:34.3]} 32... Kg6 {[%clk 0:02:13.7]} 33. Rc2 {[%clk 0:02:33.2]} 33...
Kg7 {[%clk 0:01:55.7]} 34. Rc1 {[%clk 0:02:32.1]} 34... Kf8 {[%clk 0:01:52.2]}
35. Rc2 {[%clk 0:02:28]} 35... Ke8 {[%clk 0:01:50.7]} 36. Ra2 {[%clk 0:02:12.7]}
36... c4 {[%clk 0:01:45.4]} 37. Ra8+ {[%clk 0:01:53]} 37... Nd8 {[%clk
0:01:42.2]} 38. bxc4 {[%clk 0:01:07.9]} 38... bxc4 {[%clk 0:01:40.2]} 39. Nb2
{[%clk 0:01:07.6]} 39... c3 {[%clk 0:01:38.8]} 40. Nd3 {[%clk 0:01:02]} 40...
Kd7 {[%clk 0:00:44.9]} 41. Ra7+ {[%clk 0:00:54.1]} 41... Ke8 {[%clk 0:00:33.2]}
42. Rc7 {[%clk 0:00:52.9]} 42... Ra5 {[%clk 0:00:23.8]} 43. Rxc3 {[%clk
0:00:49.2]} 43... Ra2+ {[%clk 0:00:23.3]} 44. Bd2 {[%clk 0:00:45.5]} 44... Ne6
{[%clk 0:00:18.7]} 45. Nb4 {[%clk 0:00:19.2]} 45... Kd7 {[%clk 0:00:17.6]} 46.
Nxa2 {[%clk 0:00:18.2]} 1-0

[Event "Live Chess"]
[Site "Chess.com"]
[Date "2024.06.01"]
[Round "-"]
[White "Brooms1989"]
[Black "SvitlanaJ"]
[Result "1-0"]
[WhiteElo "1051"]
[BlackElo "386"]
[TimeControl "300"]
[EndTime "9:38:26 PDT"]
[Termination "Brooms1989 won by resignation"]

1. e4 {[%clk 0:04:54.7]} 1... e5 {[%clk 0:04:58.4]} 2. Nc3 {[%clk 0:04:52.6]}
2... Nc6 {[%clk 0:04:56.6]} 3. Bc4 {[%clk 0:04:51]} 3... Nf6 {[%clk 0:04:53.9]}
4. d3 {[%clk 0:04:49.4]} 4... d6 {[%clk 0:04:50]} 5. f4 {[%clk 0:04:47.7]} 5...
Bg4 {[%clk 0:04:46.1]} 6. Nge2 {[%clk 0:04:37.5]} 6... Nd4 {[%clk 0:04:39.1]} 7.
h3 {[%clk 0:04:31.9]} 7... Nxe2 {[%clk 0:04:32.4]} 8. Nxe2 {[%clk 0:04:30.1]}
8... Bxe2 {[%clk 0:04:25.4]} 9. Qxe2 {[%clk 0:04:30]} 9... exf4 {[%clk
0:04:12.1]} 10. Bxf4 {[%clk 0:04:24]} 10... g6 {[%clk 0:04:04.8]} 11. O-O {[%clk
0:04:17.9]} 11... Bg7 {[%clk 0:03:57.9]} 12. c3 {[%clk 0:04:05.9]} 12... O-O
{[%clk 0:03:55.7]} 13. Qf3 {[%clk 0:03:36.8]} 13... c6 {[%clk 0:03:43.3]} 14.
Bg5 {[%clk 0:03:26.6]} 14... Re8 {[%clk 0:03:30.1]} 15. Bxf6 {[%clk 0:03:23.5]}
15... Bxf6 {[%clk 0:03:25.5]} 16. Qxf6 {[%clk 0:03:23.4]} 16... Qxf6 {[%clk
0:03:23.4]} 17. Rxf6 {[%clk 0:03:23.3]} 17... b5 {[%clk 0:03:14.9]} 18. Bxf7+
{[%clk 0:03:05]} 18... Kg7 {[%clk 0:03:08.8]} 19. Bxe8 {[%clk 0:03:03.8]} 19...
Kxf6 {[%clk 0:03:07.4]} 20. Bxc6 {[%clk 0:03:02.8]} 20... Rc8 {[%clk 0:03:03.4]}
21. Bd5 {[%clk 0:03:00.9]} 21... b4 {[%clk 0:02:56.3]} 22. c4 {[%clk 0:02:58]}
22... a5 {[%clk 0:02:53.7]} 23. Rf1+ {[%clk 0:02:43.5]} 23... Ke5 {[%clk
0:02:52.2]} 24. b3 {[%clk 0:02:38.4]} 24... Kd4 {[%clk 0:02:50.7]} 25. Rf7
{[%clk 0:02:19.3]} 25... h5 {[%clk 0:02:44.9]} 26. Rg7 {[%clk 0:02:15.4]} 26...
Kxd3 {[%clk 0:02:39.7]} 27. Rxg6 {[%clk 0:02:13.2]} 27... Kc3 {[%clk 0:02:32.9]}
28. Rxd6 {[%clk 0:02:08.6]} 28... Kb2 {[%clk 0:02:29.5]} 29. Ra6 {[%clk
0:02:06.4]} 29... Kxa2 {[%clk 0:02:21.2]} 30. Rxa5+ {[%clk 0:02:05.4]} 30...
Kxb3 {[%clk 0:02:20]} 31. Rb5 {[%clk 0:02:03.1]} 31... Ra8 {[%clk 0:02:12.6]}
32. Bxa8 {[%clk 0:01:59.7]} 1-0

[Event "Live Chess"]
[Site "Chess.com"]
[Date "2024.06.01"]
[Round "-"]
[White "DoggyDalmatian"]
[Black "willc-h99"]
[Result "0-1"]
[WhiteElo "1613"]
[BlackElo "2661"]
[TimeControl "300"]
[EndTime "9:38:27 PDT"]
[Termination "willc-h99 won by resignation"]

1. e4 {[%clk 0:04:55]} 1... g6 {[%clk 0:04:59.9]} 2. d4 {[%clk 0:04:53.8]} 2...
Bg7 {[%clk 0:04:59.2]} 3. Nf3 {[%clk 0:04:52.4]} 3... c6 {[%clk 0:04:56.9]} 4.
Be3 {[%clk 0:04:50.6]} 4... d5 {[%clk 0:04:55.6]} 5. exd5 {[%clk 0:04:49.4]}
5... cxd5 {[%clk 0:04:54.6]} 6. Bd3 {[%clk 0:04:47.1]} 6... Nc6 {[%clk
0:04:51.5]} 7. c3 {[%clk 0:04:45.3]} 7... Nh6 {[%clk 0:04:46.9]} 8. h3 {[%clk
0:04:42.7]} 8... O-O {[%clk 0:04:42.3]} 9. O-O {[%clk 0:04:37.1]} 9... Bf5
{[%clk 0:04:41.2]} 10. Qe2 {[%clk 0:04:33.1]} 10... Bxd3 {[%clk 0:04:38.7]} 11.
Qxd3 {[%clk 0:04:29.7]} 11... Nf5 {[%clk 0:04:35.2]} 12. Re1 {[%clk 0:04:26.4]}
12... f6 {[%clk 0:04:26]} 13. Nbd2 {[%clk 0:04:24.3]} 13... e5 {[%clk
0:04:19.6]} 14. dxe5 {[%clk 0:04:22.2]} 14... fxe5 {[%clk 0:04:17.9]} 15. Bg5
{[%clk 0:04:16.5]} 15... Qd6 {[%clk 0:04:06.9]} 16. Qe2 {[%clk 0:04:10.8]} 16...
h6 {[%clk 0:03:56.8]} 17. Bh4 {[%clk 0:04:03.8]} 17... g5 {[%clk 0:03:51.5]} 18.
Bg3 {[%clk 0:03:59.3]} 18... Nxg3 {[%clk 0:03:50.2]} 19. fxg3 {[%clk 0:03:39.4]}
19... e4 {[%clk 0:03:49.2]} 0-1

[Event "Live Chess"]
[Site "Chess.com"]
[Date "2024.06.01"]
[Round "-"]
[White "JP56789"]
[Black "Grace6363"]
[Result "1-0"]
[WhiteElo "2297"]
[BlackElo "1122"]
[TimeControl "300"]
[EndTime "9:38:28 PDT"]
[Termination "JP56789 won by resignation"]

1. e4 {[%clk 0:04:57.7]} 1... c5 {[%clk 0:04:52.7]} 2. Nf3 {[%clk 0:04:56.7]}
2... Nc6 {[%clk 0:04:51.9]} 3. Bb5 {[%clk 0:04:55.5]} 3... Nd4 {[%clk
0:04:48.9]} 4. Nxd4 {[%clk 0:04:54.1]} 4... cxd4 {[%clk 0:04:48]} 5. O-O {[%clk
0:04:54]} 5... g6 {[%clk 0:04:46.2]} 6. d3 {[%clk 0:04:53]} 6... Bg7 {[%clk
0:04:45.3]} 7. Nd2 {[%clk 0:04:52.2]} 7... e6 {[%clk 0:04:44.7]} 8. f4 {[%clk
0:04:51]} 8... a6 {[%clk 0:04:43.1]} 9. Ba4 {[%clk 0:04:50.4]} 9... b5 {[%clk
0:04:42.1]} 10. Bb3 {[%clk 0:04:49.9]} 10... Ne7 {[%clk 0:04:38.3]} 11. Nf3
{[%clk 0:04:44.1]} 11... d5 {[%clk 0:04:34.8]} 12. e5 {[%clk 0:04:41.5]} 12...
Nf5 {[%clk 0:04:28.7]} 13. Qe2 {[%clk 0:04:39.7]} 13... Bb7 {[%clk 0:04:23.1]}
14. g4 {[%clk 0:04:37.3]} 14... Nh4 {[%clk 0:04:19.6]} 15. Nxd4 {[%clk 0:04:34]}
15... Qb6 {[%clk 0:04:01.2]} 16. Qf2 {[%clk 0:04:32.1]} 16... g5 {[%clk
0:03:50.2]} 17. Be3 {[%clk 0:04:25.4]} 17... Qd8 {[%clk 0:03:39.9]} 18. f5
{[%clk 0:04:15.3]} 18... Bxe5 {[%clk 0:03:31.3]} 19. fxe6 {[%clk 0:04:13.7]}
19... f6 {[%clk 0:03:17.6]} 20. Bxg5 {[%clk 0:03:56.9]} 20... Ng6 {[%clk
0:02:59.5]} 21. Bxf6 {[%clk 0:03:52]} 21... Bxf6 {[%clk 0:02:57.9]} 22. Qxf6
{[%clk 0:03:51.9]} 22... Qxf6 {[%clk 0:02:54.6]} 23. Rxf6 {[%clk 0:03:51.8]}
23... Ke7 {[%clk 0:02:47.6]} 24. Raf1 {[%clk 0:03:49]} 24... Raf8 {[%clk
0:02:43.1]} 25. g5 {[%clk 0:03:48.3]} 25... Ne5 {[%clk 0:02:17.2]} 26. Nf5+
{[%clk 0:03:45]} 26... Ke8 {[%clk 0:02:03.8]} 27. Nd6+ {[%clk 0:03:44]} 27...
Ke7 {[%clk 0:02:03]} 28. Nxb7 {[%clk 0:03:40.6]} 28... Rxf6 {[%clk 0:02:02.1]}
29. Rxf6 {[%clk 0:03:38.8]} 29... Rg8 {[%clk 0:01:55.3]} 30. h4 {[%clk
0:03:37.8]} 30... Ng4 {[%clk 0:01:53.2]} 31. Rf4 {[%clk 0:03:32.5]} 31... Kxe6
{[%clk 0:01:47.4]} 32. Rxg4 {[%clk 0:03:30]} 1-0

[Event "Live Chess"]
[Site "Chess.com"]
[Date "2024.06.01"]
[Round "-"]
[White "McFim"]
[Black "14141409"]
[Result "0-1"]
[WhiteElo "1576"]
[BlackElo "2561"]
[TimeControl "300"]
[EndTime "9:38:44 PDT"]
[Termination "14141409 won on time"]

1. e4 {[%clk 0:04:55.7]} 1... c5 {[%clk 0:04:58.3]} 2. Nf3 {[%clk 0:04:54.2]}
2... Nc6 {[%clk 0:04:56.8]} 3. Bb5 {[%clk 0:04:52.8]} 3... Nf6 {[%clk
0:04:54.9]} 4. d3 {[%clk 0:04:46.9]} 4... Qa5+ {[%clk 0:04:52.3]} 5. Nc3 {[%clk
0:04:44.8]} 5... Nd4 {[%clk 0:04:51.8]} 6. Bc4 {[%clk 0:04:41.6]} 6... b5 {[%clk
0:04:50.6]} 7. Bb3 {[%clk 0:04:30.3]} 7... Nxb3 {[%clk 0:04:48.3]} 8. cxb3
{[%clk 0:04:28.5]} 8... d6 {[%clk 0:04:47.4]} 9. O-O {[%clk 0:04:26.9]} 9... b4
{[%clk 0:04:46.1]} 10. Ne2 {[%clk 0:04:24.2]} 10... Ba6 {[%clk 0:04:44.2]} 11.
Re1 {[%clk 0:04:20.2]} 11... g6 {[%clk 0:04:42.4]} 12. Be3 {[%clk 0:03:44.4]}
12... Bg7 {[%clk 0:04:39.5]} 13. Ng3 {[%clk 0:03:42.3]} 13... O-O {[%clk
0:04:37.3]} 14. d4 {[%clk 0:03:40.3]} 14... Ng4 {[%clk 0:04:34.8]} 15. Bc1
{[%clk 0:03:28.5]} 15... cxd4 {[%clk 0:04:25.3]} 16. Nxd4 {[%clk 0:03:27]} 16...
Qb6 {[%clk 0:04:22.4]} 17. Be3 {[%clk 0:03:07.5]} 17... Nxe3 {[%clk 0:04:18.4]}
18. fxe3 {[%clk 0:03:06]} 18... e5 {[%clk 0:04:16.4]} 19. Nf3 {[%clk 0:02:56.6]}
19... Bb7 {[%clk 0:04:14.3]} 20. Qd3 {[%clk 0:02:51.9]} 20... Rad8 {[%clk
0:04:12.4]} 21. Rad1 {[%clk 0:02:44.1]} 21... d5 {[%clk 0:04:10.4]} 22. exd5
{[%clk 0:02:42]} 22... Rxd5 {[%clk 0:04:09.3]} 23. Qe2 {[%clk 0:02:40.3]} 23...
Rfd8 {[%clk 0:04:06.9]} 24. Rxd5 {[%clk 0:02:35.6]} 24... Rxd5 {[%clk
0:04:05.6]} 25. Kh1 {[%clk 0:02:28.4]} 25... Ra5 {[%clk 0:03:59.3]} 26. Qc4
{[%clk 0:01:57.7]} 26... Bxf3 {[%clk 0:03:48.4]} 27. gxf3 {[%clk 0:01:56]} 27...
Qb7 {[%clk 0:03:44.4]} 28. Kg2 {[%clk 0:01:50]} 28... Rxa2 {[%clk 0:03:42.3]}
29. Re2 {[%clk 0:01:48.6]} 29... h5 {[%clk 0:03:35.7]} 30. Ne4 {[%clk
0:01:46.5]} 30... Bh6 {[%clk 0:03:28]} 31. Kf2 {[%clk 0:01:42]} 31... Qb6 {[%clk
0:03:23.8]} 32. Qd3 {[%clk 0:01:01.5]} 32... Kg7 {[%clk 0:03:20.4]} 33. Qd7
{[%clk 0:00:55.7]} 33... Qe6 {[%clk 0:02:43.9]} 34. Qxe6 {[%clk 0:00:52.3]}
34... fxe6 {[%clk 0:02:42.8]} 35. Nc5 {[%clk 0:00:46.1]} 35... Kf7 {[%clk
0:02:40.6]} 36. Nd3 {[%clk 0:00:35.3]} 36... a5 {[%clk 0:02:35.7]} 37. Re1
{[%clk 0:00:31]} 37... a4 {[%clk 0:02:26]} 38. bxa4 {[%clk 0:00:27.2]} 38...
Rxa4 {[%clk 0:02:24.4]} 39. Rc1 {[%clk 0:00:24.6]} 39... Bg7 {[%clk 0:02:20.6]}
40. Rc7+ {[%clk 0:00:21.3]} 40... Kg8 {[%clk 0:02:18.7]} 41. Rc8+ {[%clk
0:00:18]} 41... Kh7 {[%clk 0:02:17.5]} 42. Rb8 {[%clk 0:00:15.1]} 42... e4
{[%clk 0:02:11]} 43. fxe4 {[%clk 0:00:13.4]} 43... b3 {[%clk 0:02:10.2]} 44.
Rxb3 {[%clk 0:00:11]} 44... Rxe4 {[%clk 0:02:09.7]} 45. Kf3 {[%clk 0:00:09.8]}
45... Rh4 {[%clk 0:02:08]} 46. Kg3 {[%clk 0:00:06.8]} 46... Rc4 {[%clk
0:02:06.6]} 47. Nf4 {[%clk 0:00:04.6]} 47... e5 {[%clk 0:02:01.1]} 48. Ne6
{[%clk 0:00:01.6]} 48... Bf6 {[%clk 0:01:58.7]} 49. Rb7+ {[%clk 0:00:00.1]}
49... Kh6 {[%clk 0:01:57.6]} 0-1